fUST/lending_fUST_20250208
["ID","MTS","AMOUNT","RATE_DAILY","PERIOD"]
[352225755,1739009440591,-500.0,0.00010958,2]
[352225756,1739009440600,-500.0,0.00010958,2]
[352225757,1739009440610,-16026.97,0.00010958,2]
[352225758,1739009440619,-500.0,0.00010958,2]
[352225759,1739009440629,-500.0,0.00010958,2]
[352225760,1739009440638,-500.0,0.00010958,2]
[352225761,1739009440647,-500.0,0.00010958,2]
[352225762,1739009440656,-500.0,0.00010958,2]
[352225763,1739009440666,-1407.63,0.00010958,2]
[352225764,1739009440675,-500.0,0.00010958,2]
[352225765,1739009440684,-500.0,0.00010958,2]
[352225766,1739009440693,-500.0,0.00010958,2]
[352225767,1739009440703,-500.0,0.00010958,2]
[352225768,1739009440713,-500.0,0.00010958,2]
[352225769,1739009440723,-500.0,0.00010958,2]
[352225770,1739009440732,-500.0,0.00010958,2]
[352225771,1739009440742,-506.40964396,0.00010958,2]
[352225772,1739009440751,-501.43391223,0.00010958,2]
[352225773,1739009440760,-500.0,0.00010958,2]
[352225774,1739009440770,-504.71568762,0.00010958,2]
[352225775,1739009440779,-949.5,0.00010958,2]
[352225776,1739009440788,-500.0,0.00010958,2]
[352225777,1739009440798,-1906.56,0.00010958,2]
[352225779,1739009440807,-500.0,0.00010958,2]
[352225781,1739009440817,-500.0,0.00010958,2]
[352225782,1739009440826,-529.44,0.00010958,2]
[352225783,1739009440835,-1350.11,0.00010958,2]
[352225784,1739009440844,-2135.38,0.00010958,2]
[352225785,1739009441020,-1630.95,0.00010958,2]
[352225786,1739009441031,-505.92911704,0.00010958,2]
[352225787,1739009441041,-500.0,0.00010958,2]
[352225788,1739009441051,-500.0,0.00010958,2]
[352225789,1739009441061,-1365.08,0.00010958,2]
[352225790,1739009441070,-500.0,0.00010958,2]
[352225791,1739009441080,-243.74158017,0.00010958,2]
[352225792,1739009441089,-500.0,0.00010958,2]
[352225793,1739009441101,-500.0,0.00010958,2]
[352225794,1739009441110,-506.42217585,0.00010958,2]
[352225795,1739009441119,-500.0,0.00010958,2]
[352225796,1739009441128,-1747.7,0.00010958,2]
[352225797,1739009441141,-500.0,0.00010958,2]
[352225798,1739009441150,-504.44228573,0.00010958,2]
[352225799,1739009441160,-500.0,0.00010958,2]
[352225800,1739009441169,-500.0,0.00010958,2]
[352225801,1739009441178,-500.0,0.00010958,2]
[352225802,1739009441188,-500.0,0.00010958,2]
[352225803,1739009441198,-4019.37,0.00010958,2]
[352225804,1739009441208,-500.0,0.00010958,2]
[352225805,1739009441217,-1381.87,0.00010958,2]
[352225806,1739009441226,-8764.6,0.00010958,2]
[352225807,1739009441235,-500.0,0.00010958,2]
[352225808,1739009441245,-500.0,0.00010958,2]
[352225809,1739009441256,-500.0,0.00010958,2]
[352225810,1739009441274,-500.0,0.00010958,2]
[352225811,1739009441284,-4059.87,0.00010958,2]
[352225812,1739009441294,-500.0,0.00010958,2]
[352225813,1739009441304,-1602.63,0.00010958,2]
[352225814,1739009441313,-500.0,0.00010958,2]
[352225815,1739009441323,-657.46,0.00010958,2]
[352225816,1739009441333,-500.0,0.00010958,2]
[352225817,1739009441343,-823.09,0.00010958,2]
[352225818,1739009441356,-500.0,0.00010958,2]
[352225819,1739009441367,-500.0,0.00010958,2]
[352225820,1739009441378,-508.66649537,0.00010958,2]
[352225821,1739009441387,-500.0,0.00010958,2]
[352225822,1739009441397,-500.0,0.00010958,2]
[352225823,1739009441407,-941.45,0.00010958,2]
[352225824,1739009441416,-500.0,0.00010958,2]
[352225825,1739009441426,-1683.31,0.00010958,2]
[352225826,1739009441435,-630.65,0.00010958,2]
[352225827,1739009441444,-500.0,0.00010958,2]
[352225828,1739009441454,-500.0,0.00010958,2]
[352225829,1739009441463,-1922.81,0.00010958,2]
[352225830,1739009441473,-4714.96,0.00010958,2]
[352225831,1739009441482,-500.0,0.00010958,2]
[352225832,1739009441491,-500.0,0.00010958,2]
[352225833,1739009441502,-500.0,0.00010958,2]
[352225834,1739009441512,-500.0,0.00010958,2]
[352225835,1739009441522,-500.0,0.00010958,2]
[352225836,1739009441532,-1550.32,0.00010958,2]
[352225837,1739009441542,-875.49,0.00010958,2]
[352225838,1739009441553,-686.62,0.00010958,2]
[352225839,1739009441562,-500.0,0.00010958,2]
[352225840,1739009441571,-500.0,0.00010958,2]
[352225841,1739009441580,-500.0,0.00010958,2]
[352225842,1739009441590,-500.0,0.00010958,2]
[352225843,1739009441599,-3131.78,0.00010958,2]
[352225844,1739009441608,-500.0,0.00010958,2]
[352225845,1739009441617,-500.0,0.00010958,2]
[352225846,1739009441627,-1206.88,0.00010958,2]
[352225847,1739009441636,-178.04,0.00010959,2]
[352225848,1739009441645,-890.21,0.00010959,2]
[352225849,1739009441655,-10000.0,0.00011,8]
[352225850,1739009441664,-500.0,0.00011095,2]
[352225851,1739009441673,-500.0,0.00011095,2]
[352225852,1739009441683,-500.0,0.00011095,2]
[352225853,1739009441692,-500.0,0.00011095,2]
[352225854,1739009441702,-500.0,0.00011095,2]
[352225855,1739009441712,-176.41905318,0.00011095,2]
[352225856,1739009441722,-500.0,0.00011095,2]
[352225857,1739009441732,-500.0,0.00011095,2]
[352225858,1739009441742,-514.15886463,0.00011095,2]
[352225859,1739009441751,-500.0,0.00011095,2]
[352225860,1739009441761,-500.0,0.00011095,2]
[352225861,1739009441771,-500.0,0.00011095,2]
[352225862,1739009441781,-500.0,0.00011095,2]
[352225863,1739009441790,-500.0,0.00011095,2]
[352225864,1739009441800,-362.35952819,0.00011095,2]
[352225865,1739009441809,-500.0,0.00011095,2]
[352225866,1739009441818,-637.54598833,0.00011095,2]
[352225867,1739009441828,-500.0,0.00011095,2]
[352225868,1739009441837,-500.0,0.00011095,2]
[352225869,1739009441847,-500.0,0.00011095,2]
[352225870,1739009441856,-500.0,0.00011095,2]
[352225871,1739009441865,-713.97,0.00011095,2]
[352225872,1739009441875,-500.0,0.00011095,2]
[352225873,1739009441884,-632.42,0.00011095,2]
[352225874,1739009441893,-500.0,0.00011095,2]
[352225875,1739009441903,-500.0,0.00011095,2]
[352225876,1739009441912,-430.38540521,0.00011095,2]
[352225877,1739009441922,-500.0,0.00011095,2]
[352225878,1739009441931,-869.64,0.00011095,2]
[352225879,1739009441940,-500.0,0.00011095,2]
[352225880,1739009441951,-500.0,0.00011095,2]
[352225881,1739009441961,-500.0,0.00011095,2]
[352225882,1739009441970,-500.0,0.00011095,2]
[352225883,1739009441980,-500.0,0.00011095,2]
[352225884,1739009441989,-500.0,0.00011095,2]
[352225885,1739009441998,-500.0,0.00011095,2]
[352225886,1739009442008,-500.0,0.00011095,2]
[352225887,1739009442017,-500.0,0.00011095,2]
[352225888,1739009442026,-500.0,0.00011095,2]
[352225889,1739009442036,-500.0,0.00011095,2]
[352225890,1739009442046,-852.32,0.00011095,2]
[352225891,1739009442056,-500.0,0.00011095,2]
[352225892,1739009442066,-500.0,0.00011095,2]
[352225893,1739009442075,-500.0,0.00011095,2]
[352225894,1739009442085,-487.24118303,0.00011095,2]
[352225895,1739009442095,-500.0,0.00011095,2]
[352225896,1739009442107,-500.0,0.00011095,2]
[352225897,1739009442116,-232.57135564,0.00011095,2]
[352225898,1739009442126,-537.69,0.00011095,2]
[352225899,1739009442135,-354.83054355,0.00011095,2]
[352225900,1739009442144,-500.0,0.00011095,2]
[352225901,1739009442154,-500.0,0.00011095,2]
[352225902,1739009442164,-500.0,0.00011095,2]
[352225903,1739009442174,-500.0,0.00011095,2]
[352225904,1739009442188,-500.0,0.00011095,2]
[352225905,1739009442198,-271.38286363,0.00011095,2]
[352225906,1739009442210,-610.86,0.00011095,2]
[352225907,1739009442220,-500.0,0.00011095,2]
[352225908,1739009442229,-229.5921136,0.00011095,2]
[352225909,1739009442238,-500.0,0.00011095,2]
[352225910,1739009442247,-500.0,0.00011095,2]
[352225911,1739009442256,-774.05,0.00011095,2]
[352225912,1739009442266,-500.0,0.00011095,2]
[352225913,1739009442275,-500.0,0.00011095,2]
[352225914,1739009442285,-500.0,0.00011095,2]
[352225915,1739009442294,-201.77620619,0.00011095,2]
[352225916,1739009442303,-719.76,0.00011095,2]
[352225917,1739009442313,-500.0,0.00011095,2]
[352225918,1739009442323,-500.0,0.00011095,2]
[352225919,1739009442332,-500.0,0.00011095,2]
[352225920,1739009442342,-500.0,0.00011095,2]
[352225921,1739009442352,-500.0,0.00011095,2]
[352225922,1739009442361,-500.0,0.00011095,2]
[352225923,1739009442370,-500.0,0.00011095,2]
[352225924,1739009442380,-500.0,0.00011095,2]
[352225925,1739009442390,-500.0,0.00011095,2]
[352225926,1739009442399,-500.0,0.00011095,2]
[352225927,1739009442409,-500.0,0.00011095,2]
[352225928,1739009442418,-1090.02,0.00011095,2]
[352225929,1739009442427,-500.0,0.00011095,2]
[352225930,1739009442437,-500.0,0.00011095,2]
[352225931,1739009442446,-500.0,0.00011095,2]
[352225932,1739009442458,-500.0,0.00011095,2]
[352225933,1739009442467,-500.0,0.00011095,2]
[352225934,1739009442476,-500.0,0.00011095,2]
[352225935,1739009442485,-500.0,0.00011095,2]
[352225936,1739009442494,-1436.01,0.00011095,2]
[352225937,1739009442503,-500.0,0.00011095,2]
[352225938,1739009442513,-500.0,0.00011095,2]
[352225939,1739009442522,-547.96657509,0.00011095,2]
[352225940,1739009442531,-500.0,0.00011095,2]
[352225941,1739009442541,-1466.47,0.00011095,2]
[352225942,1739009442550,-500.0,0.00011095,2]
[352225943,1739009442559,-500.0,0.00011095,2]
[352225944,1739009442569,-500.0,0.00011095,2]
[352225945,1739009442578,-500.0,0.00011095,2]
[352225946,1739009442588,-599.69,0.00011095,2]
[352225947,1739009442597,-457.10840547,0.00011095,2]
[352225948,1739009442607,-500.0,0.00011095,2]
[352225949,1739009442616,-500.0,0.00011095,2]
[352225950,1739009442626,-500.0,0.00011095,2]
[352225951,1739009442636,-500.0,0.00011095,2]
[352225952,1739009442645,-500.0,0.00011095,2]
[352225953,1739009442654,-500.0,0.00011095,2]
[352225954,1739009442663,-500.0,0.00011095,2]
[352225955,1739009442673,-500.0,0.00011095,2]
[352225956,1739009442682,-500.0,0.00011095,2]
[352225957,1739009442691,-500.0,0.00011095,2]
[352225958,1739009442701,-500.0,0.00011095,2]
[352225959,1739009442710,-500.0,0.00011095,2]
[352225960,1739009442719,-500.0,0.00011095,2]
[352225961,1739009442728,-500.0,0.00011095,2]
[352225962,1739009442738,-500.0,0.00011095,2]
[352225963,1739009442747,-500.0,0.00011095,2]
[352225964,1739009442756,-500.0,0.00011095,2]
[352225965,1739009442765,-500.0,0.00011095,2]
[352225966,1739009442775,-500.0,0.00011095,2]
[352225967,1739009442785,-500.0,0.00011095,2]
[352225968,1739009442794,-1135.68,0.00011095,2]
[352225969,1739009442804,-1616.62,0.00011095,2]
[352225970,1739009442814,-500.0,0.00011095,2]
[352225971,1739009442823,-500.0,0.00011095,2]
[352225972,1739009442832,-500.0,0.00011095,2]
[352225973,1739009442847,-17848.75,0.00011095,2]
[352225974,1739009442856,-505.41348552,0.00011095,2]
[352225975,1739009442865,-500.0,0.00011095,2]
[352225976,1739009442875,-502.26367311,0.00011095,2]
[352225977,1739009442884,-500.0,0.00011095,2]
[352225978,1739009442894,-1150.84,0.00011095,2]
[352225979,1739009442903,-3466.13,0.00011095,2]
[352225980,1739009442912,-500.0,0.00011095,2]
[352225981,1739009442922,-500.0,0.00011095,2]
[352225982,1739009442932,-500.0,0.00011095,2]
[352225983,1739009442941,-846.96,0.00011095,2]
[352225984,1739009442952,-780.26,0.00011095,2]
[352225985,1739009442961,-500.0,0.00011095,2]
[352225986,1739009442971,-500.0,0.00011095,2]
[352225987,1739009442980,-3788.56,0.00011095,2]
[352225988,1739009442990,-500.0,0.00011095,2]
[352225989,1739009443000,-1794.57,0.00011095,2]
[352225990,1739009443009,-500.0,0.00011095,2]
[352225991,1739009443019,-746.18,0.00011095,2]
[352225992,1739009443028,-500.0,0.00011095,2]
[352225993,1739009443038,-182.26280745,0.00011095,2]
[352225994,1739009443047,-637.54,0.00011095,2]
[352225995,1739009443056,-766.04,0.00011095,2]
[352225996,1739009443065,-500.0,0.00011095,2]
[352225997,1739009443074,-500.0,0.00011095,2]
[352225998,1739009443083,-1249.76,0.00011095,2]
[352225999,1739009443093,-500.0,0.00011095,2]
[352226000,1739009443103,-500.0,0.00011095,2]
[352226001,1739009443113,-1207.57,0.00011095,2]
[352226002,1739009443122,-5435.25,0.00011095,2]
[352226003,1739009443132,-500.0,0.00011095,2]
[352226004,1739009443142,-500.0,0.00011095,2]
[352226005,1739009443153,-500.0,0.00011095,2]
[352226006,1739009443163,-500.0,0.00011095,2]
[352226007,1739009443172,-500.0,0.00011095,2]
[352226008,1739009443183,-500.0,0.00011095,2]
[352226009,1739009443194,-500.0,0.00011095,2]
[352226010,1739009443204,-164.35698989,0.00011095,2]
[352226011,1739009443213,-500.0,0.00011095,2]
[352226012,1739009443222,-1411.95,0.00011095,2]
[352226013,1739009443232,-500.0,0.00011095,2]
[352226014,1739009443242,-500.0,0.00011095,2]
[352226016,1739009443251,-500.0,0.00011095,2]
[352226018,1739009443261,-500.0,0.00011095,2]
[352226019,1739009443271,-47019.47,0.00011095,2]
[352226020,1739009443281,-500.0,0.00011095,2]
[352226021,1739009443291,-3974.37,0.00011095,2]
[352226023,1739009443301,-500.0,0.00011095,2]
[352226025,1739009443311,-500.0,0.00011095,2]
[352226027,1739009443320,-500.0,0.00011095,2]
[352226029,1739009443329,-2098.99,0.00011095,2]
[352226031,1739009443339,-674.98,0.00011095,2]
[352226033,1739009443349,-2018.79,0.00011095,2]
[352226035,1739009443358,-226.68405958,0.00011095,2]
[352226037,1739009443368,-500.0,0.00011095,2]
[352226039,1739009443377,-500.0,0.00011095,2]
[352226041,1739009443387,-500.0,0.00011095,2]
[352226042,1739009443396,-500.0,0.00011095,2]
[352226043,1739009443406,-500.0,0.00011095,2]
[352226044,1739009443415,-500.0,0.00011095,2]
[352226045,1739009443425,-1445.5,0.00011095,2]
[352226046,1739009443434,-1227.56,0.00011095,2]
[352226047,1739009443443,-500.0,0.00011095,2]
[352226049,1739009443453,-500.0,0.00011095,2]
[352226051,1739009443462,-500.0,0.00011095,2]
[352226053,1739009443472,-500.0,0.00011095,2]
[352226055,1739009443480,-500.0,0.00011095,2]
[352226057,1739009443489,-1757.4,0.00011095,2]
[352226059,1739009443499,-500.0,0.00011095,2]
[352226061,1739009443508,-500.0,0.00011095,2]
[352226063,1739009443517,-500.0,0.00011095,2]
[352226065,1739009443527,-16026.97,0.00011095,2]
[352226067,1739009443539,-500.0,0.00011095,2]
[352226069,1739009443548,-500.0,0.00011095,2]
[352226071,1739009443558,-500.0,0.00011095,2]
[352226073,1739009443567,-500.0,0.00011095,2]
[352226075,1739009443576,-1407.63,0.00011095,2]
[352226077,1739009443585,-500.0,0.00011095,2]
[352226079,1739009443594,-500.0,0.00011095,2]
[352226081,1739009443603,-500.0,0.00011095,2]
[352226083,1739009443613,-500.0,0.00011095,2]
[352226085,1739009443623,-500.0,0.00011095,2]
[352226087,1739009443632,-500.0,0.00011095,2]
[352226089,1739009443641,-506.92400394,0.00011095,2]
[352226091,1739009443651,-949.5,0.00011095,2]
[352226093,1739009443660,-500.0,0.00011095,2]
[352226095,1739009443670,-1906.56,0.00011095,2]
[352226097,1739009443679,-500.0,0.00011095,2]
[352226099,1739009443688,-500.0,0.00011095,2]
[352226101,1739009443697,-529.44,0.00011095,2]
[352226103,1739009443706,-1350.11,0.00011095,2]
[352226105,1739009443716,-2135.38,0.00011095,2]
[352226107,1739009443725,-1630.95,0.00011095,2]
[352226109,1739009443735,-500.0,0.00011095,2]
[352226111,1739009443745,-1365.08,0.00011095,2]
[352226113,1739009443755,-500.0,0.00011095,2]
[352226115,1739009443764,-500.0,0.00011095,2]
[352226117,1739009443773,-500.0,0.00011095,2]
[352226119,1739009443783,-1747.7,0.00011095,2]
[352226121,1739009443792,-539.40651127,0.00011095,2]
[352226123,1739009443802,-500.0,0.00011095,2]
[352226126,1739009443812,-500.0,0.00011095,2]
[352226127,1739009443822,-500.0,0.00011095,2]
[352226129,1739009443831,-500.0,0.00011095,2]
[352226131,1739009443840,-4019.37,0.00011095,2]
[352226133,1739009443850,-500.0,0.00011095,2]
[352226135,1739009443859,-1381.87,0.00011095,2]
[352226137,1739009443869,-8764.6,0.00011095,2]
[352226140,1739009443879,-500.0,0.00011095,2]
[352226142,1739009443888,-500.0,0.00011095,2]
[352226144,1739009443898,-500.0,0.00011095,2]
[352226145,1739009443907,-500.0,0.00011095,2]
[352226148,1739009443917,-4059.87,0.00011095,2]
[352226150,1739009443926,-1602.63,0.00011095,2]
[352226151,1739009443935,-500.0,0.00011095,2]
[352226155,1739009443946,-657.46,0.00011095,2]
[352226158,1739009443956,-500.0,0.00011095,2]
[352226161,1739009443966,-823.09,0.00011095,2]
[352226163,1739009443975,-500.0,0.00011095,2]
[352226165,1739009443985,-500.0,0.00011095,2]
[352226167,1739009443994,-500.0,0.00011095,2]
[352226169,1739009444004,-500.0,0.00011095,2]
[352226171,1739009444013,-941.45,0.00011095,2]
[352226173,1739009444023,-500.0,0.00011095,2]
[352226175,1739009444032,-1683.31,0.00011095,2]
[352226176,1739009444042,-630.65,0.00011095,2]
[352226178,1739009444052,-500.0,0.00011095,2]
[352226180,1739009444061,-500.0,0.00011095,2]
[352226181,1739009444071,-1922.81,0.00011095,2]
[352226183,1739009444080,-4714.96,0.00011095,2]
[352226184,1739009444090,-500.0,0.00011095,2]
[352226185,1739009444103,-500.0,0.00011095,2]
[352226186,1739009444114,-500.0,0.00011095,2]
[352226187,1739009444123,-500.0,0.00011095,2]
[352226189,1739009444132,-500.0,0.00011095,2]
[352226191,1739009444143,-1550.32,0.00011095,2]
[352226193,1739009444152,-875.49,0.00011095,2]
[352226194,1739009444162,-686.62,0.00011095,2]
[352226196,1739009444171,-500.0,0.00011095,2]
[352226198,1739009444182,-474.45704257,0.00011095,2]
[352226199,1739009444192,-500.0,0.00011095,2]
[352226201,1739009444202,-500.0,0.00011095,2]
[352226202,1739009444211,-3131.78,0.00011095,2]
[352226204,1739009444221,-500.0,0.00011095,2]
[352226206,1739009444230,-500.0,0.00011095,2]
[352226207,1739009444239,-1206.88,0.00011095,2]
[352226209,1739009444248,-151.0,0.000112,2]
[352226211,1739009444257,-151.0,0.000112,2]
[352226212,1739009444266,-500.0,0.00011232,2]
[352226214,1739009444276,-500.0,0.00011232,2]
[352226216,1739009444286,-500.0,0.00011232,2]
[352226217,1739009444295,-500.0,0.00011232,2]
[352226219,1739009444304,-500.0,0.00011232,2]
[352226221,1739009444313,-500.0,0.00011232,2]
[352226222,1739009444322,-500.0,0.00011232,2]
[352226224,1739009444331,-500.0,0.00011232,2]
[352226226,1739009444340,-500.0,0.00011232,2]
[352226227,1739009444350,-500.0,0.00011232,2]
[352226229,1739009444359,-500.0,0.00011232,2]
[352226231,1739009444369,-500.0,0.00011232,2]
[352226233,1739009444378,-500.0,0.00011232,2]
[352226234,1739009444387,-713.97,0.00011232,2]
[352226236,1739009444395,-500.0,0.00011232,2]
[352226237,1739009444404,-632.42,0.00011232,2]
[352226239,1739009444414,-500.0,0.00011232,2]
[352226241,1739009444424,-500.0,0.00011232,2]
[352226243,1739009444434,-500.0,0.00011232,2]
[352226244,1739009444443,-869.64,0.00011232,2]
[352226246,1739009444453,-500.0,0.00011232,2]
[352226247,1739009444463,-500.0,0.00011232,2]
[352226248,1739009444472,-500.0,0.00011232,2]
[352226249,1739009444482,-482.67531648,0.00011232,2]
[352226251,1739009444492,-500.0,0.00011232,2]
[352226252,1739009444502,-500.0,0.00011232,2]
[352226254,1739009444511,-500.0,0.00011232,2]
[352226256,1739009444520,-500.0,0.00011232,2]
[352226258,1739009444529,-426.54006714,0.00011232,2]
[352226259,1739009444538,-500.0,0.00011232,2]
[352226261,1739009444548,-500.0,0.00011232,2]
[352226263,1739009444558,-852.32,0.00011232,2]
[352226264,1739009444568,-500.0,0.00011232,2]
[352226266,1739009444578,-500.0,0.00011232,2]
[352226268,1739009444588,-500.0,0.00011232,2]
[352226281,1739009444735,-537.69,0.00011232,2]
[352226282,1739009444745,-500.0,0.00011232,2]
[352226284,1739009444755,-500.0,0.00011232,2]
[352226286,1739009444765,-500.0,0.00011232,2]
[352226288,1739009444775,-640.88681208,0.00011232,2]
[352226289,1739009444785,-500.0,0.00011232,2]
[352226291,1739009444794,-610.86,0.00011232,2]
[352226293,1739009444804,-500.0,0.00011232,2]
[352226295,1739009444813,-500.0,0.00011232,2]
[352226296,1739009444822,-500.0,0.00011232,2]
[352226298,1739009444832,-774.05,0.00011232,2]
[352226300,1739009444841,-500.0,0.00011232,2]
[352226302,1739009444850,-500.0,0.00011232,2]
[352226303,1739009444859,-500.0,0.00011232,2]
[352226305,1739009444869,-719.76,0.00011232,2]
[352226307,1739009444879,-500.0,0.00011232,2]
[352226309,1739009444888,-500.0,0.00011232,2]
[352226311,1739009444897,-500.0,0.00011232,2]
[352226312,1739009444906,-500.0,0.00011232,2]
[352226314,1739009444916,-500.0,0.00011232,2]
[352226316,1739009444925,-500.0,0.00011232,2]
[352226318,1739009444934,-500.0,0.00011232,2]
[352226319,1739009444944,-500.0,0.00011232,2]
[352226321,1739009444954,-642.11100735,0.00011232,2]
[352226323,1739009444963,-500.0,0.00011232,2]
[352226325,1739009444972,-500.0,0.00011232,2]
[352226326,1739009444982,-1090.02,0.00011232,2]
[352226328,1739009444991,-500.0,0.00011232,2]
[352226330,1739009445000,-500.0,0.00011232,2]
[352226332,1739009445011,-500.0,0.00011232,2]
[352226334,1739009445020,-500.0,0.00011232,2]
[352226335,1739009445030,-500.0,0.00011232,2]
[352226337,1739009445039,-1436.01,0.00011232,2]
[352226339,1739009445049,-500.0,0.00011232,2]
[352226341,1739009445059,-511.05316783,0.00011232,2]
[352226342,1739009445068,-500.0,0.00011232,2]
[352226344,1739009445077,-1466.47,0.00011232,2]
[352226346,1739009445086,-500.0,0.00011232,2]
[352226348,1739009445097,-500.0,0.00011232,2]
[352226350,1739009445109,-500.0,0.00011232,2]
[352226351,1739009445119,-500.0,0.00011232,2]
[352226353,1739009445128,-599.69,0.00011232,2]
[352226355,1739009445139,-500.0,0.00011232,2]
[352226357,1739009445149,-500.0,0.00011232,2]
[352226359,1739009445158,-500.0,0.00011232,2]
[352226360,1739009445167,-500.0,0.00011232,2]
[352226362,1739009445177,-500.0,0.00011232,2]
[352226364,1739009445187,-510.0,0.00011232,2]
[352226365,1739009445196,-500.0,0.00011232,2]
[352226367,1739009445206,-500.0,0.00011232,2]
[352226369,1739009445215,-500.0,0.00011232,2]
[352226371,1739009445225,-500.0,0.00011232,2]
[352226373,1739009445234,-500.0,0.00011232,2]
[352226374,1739009445243,-500.0,0.00011232,2]
[352226376,1739009445253,-500.0,0.00011232,2]
[352226378,1739009445264,-500.0,0.00011232,2]
[352226380,1739009445274,-500.0,0.00011232,2]
[352226382,1739009445283,-500.0,0.00011232,2]
[352226383,1739009445292,-500.0,0.00011232,2]
[352226385,1739009445301,-1135.68,0.00011232,2]
[352226386,1739009445311,-1616.62,0.00011232,2]
[352226387,1739009445321,-500.0,0.00011232,2]
[352226388,1739009445331,-500.0,0.00011232,2]
[352226389,1739009445341,-526.53405721,0.00011232,2]
[352226390,1739009445350,-17848.75,0.00011232,2]
[352226391,1739009445360,-500.0,0.00011232,2]
[352226392,1739009445370,-513.58999976,0.00011232,2]
[352226393,1739009445379,-1150.84,0.00011232,2]
[352226394,1739009445388,-3466.13,0.00011232,2]
[352226395,1739009445397,-222.94555897,0.00011232,2]
[352226396,1739009445407,-500.0,0.00011232,2]
[352226397,1739009445416,-846.96,0.00011232,2]
[352226398,1739009445425,-780.26,0.00011232,2]
[352226399,1739009445435,-500.0,0.00011232,2]
[352226400,1739009445444,-500.0,0.00011232,2]
[352226401,1739009445454,-3788.56,0.00011232,2]
[352226402,1739009445463,-500.0,0.00011232,2]
[352226403,1739009445473,-1794.57,0.00011232,2]
[352226404,1739009445482,-500.0,0.00011232,2]
[352226405,1739009445491,-746.18,0.00011232,2]
[352226406,1739009445500,-500.0,0.00011232,2]
[352226407,1739009445511,-637.54,0.00011232,2]
[352226408,1739009445520,-766.04,0.00011232,2]
[352226409,1739009445529,-500.0,0.00011232,2]
[352226410,1739009445538,-500.0,0.00011232,2]
[352226411,1739009445547,-1249.76,0.00011232,2]
[352226412,1739009445557,-500.0,0.00011232,2]
[352226413,1739009445566,-276.8169302,0.00011232,2]
[352226414,1739009445575,-1207.57,0.00011232,2]
[352226415,1739009445585,-5435.25,0.00011232,2]
[352226416,1739009445594,-500.0,0.00011232,2]
[352226417,1739009445603,-500.0,0.00011232,2]
[352226418,1739009445612,-500.0,0.00011232,2]
[352226419,1739009445622,-500.0,0.00011232,2]
[352226420,1739009445631,-500.0,0.00011232,2]
[352226421,1739009445640,-500.0,0.00011232,2]
[352226422,1739009445649,-500.0,0.00011232,2]
[352226423,1739009445659,-1411.95,0.00011232,2]
[352226424,1739009445668,-500.0,0.00011232,2]
[352226425,1739009445677,-500.0,0.00011232,2]
[352226426,1739009445687,-500.0,0.00011232,2]